Cogmind - Beta 12 @@@ ROGUE MODE // 2024.01.14 @ 13:35:31 Player: sasha Result: Destroyed by D-53 Grenadier with Mini Grenade Launcher Performance ------------- Evolutions (0) 0 Regions Visited (2) 400 Robots Destroyed (27) 135 Value Destroyed (580) 580 Prototype IDs (0) 0 Alien Tech Used (0) 0 Bonus (-105) -105 TOTAL SCORE: 1010 Bonus ------- Friendly Fire -105 Cogmind --------- Core Integrity 0/250 Matter 133/300 Energy 145/265 System Corruption 0% Temperature Cool (0) Movement Core (500) Ox9 Location -10/Mines Parts ------- > --- POWER (1) -------- Improved Ion Engine > --- PROPULSION (2) --- (None) > --- UTILITY (2) ------ Large Storage Unit ECM Suite > --- WEAPON (2) ------- (None) > --- INVENTORY (15) --- Medium Matter Pod (100) Light Assault Rifle Light Assault Rifle Heavy Assault Rifle Heavy Assault Rifle Heavy Assault Rifle Autogun Autogun Autogun Autogun Peak State ------------ > --- POWER ------------ Improved Ion Engine > --- PROPULSION ------- Light Treads Light Treads > --- UTILITY ---------- Large Storage Unit ECM Suite > --- WEAPON ----------- Heavy Assault Rifle Heavy Assault Rifle > --- INVENTORY -------- Improved Ion Engine Compact Wheel Medium Matter Pod Light Assault Rifle Light Assault Rifle Heavy Assault Rifle Heavy Assault Rifle Autogun Autogun Autogun Autogun Rocket Launcher [Rating: 12] Favorites ----------- Power Improved Ion Engine Engine Improved Ion Engine Propulsion Light Treads Treads Light Treads Leg Aluminum Leg Wheel Compact Wheel Hover Unit Backup Propulsion I Utility Large Storage Unit Device ECM Suite Storage Large Storage Unit Weapon Heavy Assault Rifle Energy Gun Small Laser Ballistic Gun Heavy Assault Rifle Launcher Rocket Launcher Build | -11 -10 -10 ------- Run | Jun Mat Min Slots Evolved . | . . . Power . | . . . Propulsion . | . . . Utility . | . . . Weapon . | . . . Parts Attached 24 | 7 14 3 Power 5 | 1 3 1 Engine 5 | 1 3 1 Core . | . . . Reactor . | . . . Propulsion 6 | 2 3 1 Treads 3 | . 3 . Leg 2 | 2 . . Wheel 1 | . . 1 Hover . | . . . Flight . | . . . Utility 4 | 2 2 . Device 2 | 1 1 . Storage 2 | 1 1 . Processor . | . . . Hackware . | . . . Protection . | . . . Artifact . | . . . Weapon 9 | 2 6 1 Energy Gun 1 | 1 . . Energy Cannon . | . . . Ballistic Gun 7 | 1 6 . Ballistic Cannon . | . . . Launcher 1 | . . 1 Special Weapon . | . . . Impact Weapon . | . . . Slashing Weapon . | . . . Piercing Weapon . | . . . Special Melee Weapon . | . . . Unidentified Prototypes . | . . . Parts Lost 7 | . 1 6 Power 1 | . . 1 Propulsion 3 | . . 3 Utility 1 | . 1 . Weapon 2 | . . 2 Highest Loss Streak 6 | . 1 6 To Critical Strikes . | . . . Average Slot Usage (%) 92 | . 89 100 Engine 14 | . 14 14 Treads 16 | . 12 28 Leg 10 | . 15 . Device 8 | . 6 14 Storage 14 | . 14 14 Energy Gun 4 | . 6 . Ballistic Gun 21 | . 19 26 Naked Turns . | . . . Heaviest Build 36 | 12 35 36 Greatest Support 40 | 20 40 40 Greatest Overweight (x) 1 | . . 1 Average Overweight (x) . | . . . Largest Inventory Capacity 15 | 8 15 15 Average Capacity 11 | 6 11 15 Most Carried 12 | 5 12 12 Average Carried 7 | 3 6 11 Final Capacity 15 | 8 15 15 Final Carried 10 | 4 10 10 Class Distribution -------------------- 100% | Mutant Dominant Class ---------------- Mutant | -10/Materials Mutant | -10/Mines Resources | -11 -10 -10 ----------- Run | Jun Mat Min Matter Collected 761 | 235 385 141 Remotely . | . . . Salvage Created 806 | 18 587 201 Parts 67 | 5 47 15 Haulers Intercepted 1 | . 1 . Recyclers Shooed 3 | . 1 2 Parts Field Recycled . | . . . Retrieved Matter . | . . . Parts Self-Destructed . | . . . Prevented . | . . . Kills | -11 -10 -10 ------- Run | Jun Mat Min Combat Hostiles Destroyed 37 | . 15 22 Guns 21 | . 15 6 AOE 16 | . . 16 Classes Destroyed 8 | 1 5 2 Builder 1 | . 1 . Tunneler 1 | 1 . . Hauler 1 | . 1 . Watcher 2 | . 2 . Swarmer 9 | . 6 3 Grunt 12 | . 9 3 Zionite 1 | . . 1 Assembled 16 | . . 16 Best Kill Streak 16 | 1 4 16 Combat Bots Only 16 | . 4 16 Max Kills in Single Turn 3 | 1 2 3 Gunslinging . | . . . Exploded 3 | . . 3 Melee . | . . . Uniques/NPCs Destroyed . | . . . Combat | -11 -10 -10 -------- Run | Jun Mat Min Damage Taken 1399 | . 632 767 Core 270 | . 110 160 Absorbed by Shields . | . . . Regen/Repaired (Parts) 94 | . 94 . Core Remaining (%) 100 | 100 . . Volleys Fired 100 | 1 64 35 Largest 2 | 2 2 2 Hottest 60 | 60 60 46 Shots Fired 170 | 2 113 55 Gun 155 | 2 113 40 Cannon . | . . . Launcher 15 | . . 15 Special . | . . . Kinetic 133 | 1 92 40 Thermal 22 | 1 21 . Explosive 15 | . . 15 Electromagnetic . | . . . Robot Hit Streak 14 | 1 10 14 Robot Miss Streak 3 | . 3 3 Penetration Max . | . . . Secondary Targets 6 | . 4 2 Max Gunslinging Chain 1 | . 1 1 Shots Hit Robots 113 | 1 79 33 Core Hits 90 | 1 35 54 Critical Kills 1 | . 1 . Critical Parts Destroyed . | . . . Critical Strikes 1 | . 1 . Destroy 1 | . 1 . Melee Attacks . | . . . Impact . | . . . Slashing . | . . . Piercing . | . . . Sneak Attacks . | . . . Combat Hostiles . | . . . Follow-up Attacks . | . . . Damage Inflicted 2768 | 13 830 1925 Guns 1238 | 13 830 395 Cannons . | . . . Explosions 1526 | . . 1526 Melee . | . . . Ramming 4 | . . 4 Kinetic 1021 | 13 613 395 Thermal 268 | . 217 51 Explosive 1475 | . . 1475 Electromagnetic . | . . . Impact . | . . . Slashing . | . . . Piercing . | . . . Highest Corruption . | . . . Average Corruption . | . . . Corruption Purged . | . . . Corruption Blocked . | . . . Overload Shots . | . . . Overflow Damage 35 | . . 35 Projectiles . | . . . Explosions 35 | . . 35 Melee . | . . . Knockbacks . | . . . Impact . | . . . Kinetic . | . . . Secondary . | . . . Self-Inflicted Damage . | . . . Shots . | . . . Rammed 1 | . . 1 Targets Rammed 1 | . . 1 Kicked . | . . . Crushed . | . . . Highest Temperature 65 | . 60 65 Average Temperature 21 | . 23 18 Received Heat Transfer 559 | . 312 247 Siege Activations . | . . . Robots Corrupted . | . . . Combat Hostiles . | . . . Parts Fried . | . . . Impact Corruptions . | . . . Robots Melted . | . . . Combat Hostiles . | . . . Parts Melted . | . . . Heat Transferred 500 | . 450 50 Parts Sabotaged . | . . . Parts Stolen . | . . . Parts Stripped . | . . . Power Chain Reactions . | . . . Missiles Intercepted . | . . . Alert | -11 -10 -10 ------- Run | Jun Mat Min Peak Influence 294 | 5 294 245 Initial 58 | . 3 58 Average 136 | 2 142 149 Maximum Alert Level 1 | . 1 1 Low Security (%) 76 | 100 69 88 Level 1 23 | . 30 11 Level 2 . | . . . Level 3 . | . . . Level 4 . | . . . Level 5 . | . . . High Security . | . . . Max Security . | . . . Squads Dispatched 4 | . 4 . Investigation 1 | . 1 . Extermination . | . . . Reinforcement 3 | . 3 . Assault . | . . . Garrison . | . . . Intercept . | . . . Searches Triggered . | . . . Construction Impeded . | . . . Haulers Reinforced . | . . . Active Scanning Responses . | . . . Cargo Convoy Interrupts . | . . . Stealth | -11 -10 -10 --------- Run | Jun Mat Min Distress Signals 2 | . 2 . Communications Jammed . | . . . Distress Signals . | . . . Times Spotted 56 | . 27 29 Peak Tracking Total 15 | . 5 15 Tactical Retreats 4 | . 2 2 Traps | -11 -10 -10 ------- Run | Jun Mat Min Traps Triggered . | . . . Indirectly . | . . . Trap Hack Attempts . | . . . Triggered . | . . . Disarmed . | . . . Reprogrammed . | . . . Reused . | . . . Traps Extracted . | . . . Installed . | . . . Triggered . | . . . Machines | -11 -10 -10 ---------- Run | Jun Mat Min Machines Disabled 1 | . . 1 Max in Single Turn 1 | . . 1 Machines Repaired . | . . . Machines Sabotaged . | . . . Overloaded Fab Kills . | . . . Hacking | -11 -10 -10 --------- Run | Jun Mat Min Machines Accessed 5 | . 5 . Terminals 4 | . 4 . Fabricators . | . . . Repair Stations 1 | . 1 . Recycling Units . | . . . Scanalyzers . | . . . Garrison Access . | . . . Total Hacks 14 | . 14 . Successful 7 | . 7 . Failed 7 | . 7 . Catastrophic 2 | . 2 . Database Lockouts . | . . . Manual 10 | . 10 . Terminals 9 | . 9 . Fabricators . | . . . Repair Stations 5 | . 5 . Recycling Units . | . . . Scanalyzers . | . . . Garrison Access . | . . . Terminal Hacks 3 | . 3 . Robot Analysis 2 | . 2 . Terminal Index 1 | . 1 . Fabricator Hacks . | . . . Repair Station Hacks 4 | . 4 . Scan Component 2 | . 2 . Repair 1 | . 1 . Refit 1 | . 1 . Recycling Unit Hacks . | . . . Scanalyzer . | . . . Garrison Access Hacks . | . . . Unauthorized Hacks . | . . . Terminals . | . . . Fabricators . | . . . Repair Stations . | . . . Recycling Units . | . . . Scanalyzers . | . . . Garrison Access . | . . . Data Cores Recovered . | . . . Used . | . . . Hacking Detections 5 | . 5 . Full Trace Events 3 | . 3 . Feedback Events . | . . . Feedback Blocked . | . . . Robot Schematics Acquired . | . . . Robots Built . | . . . Authchips . | . . . Time . | . . . Total Robot Build Rating . | . . . Part Schematics Acquired . | . . . Parts Built . | . . . Authchips . | . . . Time . | . . . Total Part Build Rating . | . . . Parts Repaired 1 | . 1 . Time 26 | . 26 . Parts Recycled . | . . . Recycled Matter . | . . . Retrieved Matter . | . . . Retrieved Components . | . . . Parts Scanalyzed . | . . . Part Schematics Acquired . | . . . Parts Damaged . | . . . Bothacking | -11 -10 -10 ------------ Run | Jun Mat Min Used RIF Installer . | . . . Robots Hacked . | . . . Non-combat . | . . . Combat . | . . . Robot Hacks Applied . | . . . Relay Couplers Released . | . . . Fabnet Peak Effective % . | . . . Robots Rewired . | . . . Allies Hacked . | . . . Hacks Repelled . | . . . Allies | -11 -10 -10 -------- Run | Jun Mat Min Total Allies 2 | . . 2 Largest Group 2 | . . 2 Highest-Rated Group 62 | . . 62 Highest-Rated Ally 31 | . . 31 Total Orders . | . . . Ally Attacks 10 | . . 10 Total Damage 50 | . . 50 Kills 2 | . . 2 Allies Corrupted . | . . . Allies Melted . | . . . Intel | -11 -10 -10 ------- Run | Jun Mat Min Robot Analysis Total 2 | . 2 . Derelict Logs Recovered 1 | . . 1 Drone Launches . | . . . Drone Recoveries . | . . . Exploration | -11 -10 -10 ------------- Run | Jun Mat Min Turns Passed 1377 | 74 953 350 Spaces Moved 707 | 52 507 148 Core 10 | 10 . . Treads 332 | . 186 146 Legs 363 | 42 321 . Wheels 2 | . . 2 Hover . | . . . Flight . | . . . Fastest Speed 50 | 50 120 115 Average Speed 137 | 106 134 159 Slowest Speed 160 | 120 160 160 Overloaded Moves . | . . . Propulsion Burnouts . | . . . Robots Hopped . | . . . Cave-ins Triggered . | . . . Exploration Rate (%) 40 | 3 75 44 Regions Visited 2 Branch Regions 1 Pre-discovered Areas . | . . . Known Exits Taken . | . . . Unknown Exits Taken 2 | 1 1 . Scrap Searched 1 | . . 1 Spaces Dug . | . . . Terrain Destroyed 91 | . . 91 Melee . | . . . Projectile . | . . . AOE 91 | . . 91 Terrain Rammed . | . . . Walls Destroyed . | . . . Machines Disabled . | . . . Actions | -11 -10 -10 --------- Run | Jun Mat Min Total 955 | 67 682 206 Wait 82 | . 65 17 Move 705 | 51 506 148 Hop . | . . . Pick Up 29 | 8 19 2 Fast Attach 3 | 3 . . Attach 12 | 4 6 2 Detach . | . . . Swap 9 | . 8 1 Drop 14 | . 14 . Fire 100 | 1 64 35 Melee . | . . . Ram . | . . . Kick . | . . . Crush 1 | . . 1 Escape Stasis . | . . . Rewire . | . . . Trap . | . . . Miscellaneous . | . . . Route ------- -11/Junkyard -10/Materials (discovered 3 exits: [*Mat x2] / [*Min]) -10/Mines (discovered 1 exit: [*Mat]) History --------- Turn | Location | Event 2 | -11/Junkyard | Met Revision 17 23 | -11/Junkyard | Discovered new exit (range 16) 75 | -11/Junkyard | Entered Materials 270 | -10/Materials | Discovered new exit (range 15) 304 | -10/Materials | Build established: Mutant 377 | -10/Materials | Discovered new exit (range 16) 621 | -10/Materials | Discovered new exit (range 8) 901 | -10/Materials | Repaired Lgt. Treads 1028 | -10/Materials | Entered Mines 1035 | -10/Mines | Received a Rocket Launcher from a helpful Derelict 1103 | -10/Mines | Core integrity fell below 50% 1239 | -10/Mines | Discovered new exit (range 8) 1312 | -10/Mines | Learned Materials security intel 1331 | -10/Mines | Assembled infested the area 1375 | -10/Mines | Core integrity fell below 20% 1378 | -10/Mines | Destroyed by D-53 Grenadier with Mini Grenade Launcher Last Messages --------------- 01370_ U-05 Engineer lays Concrete. 01371_ The unstable cave ceiling collapses. 01371_ U-05 Engineer lays Concrete. 01372_ The unstable cave ceiling collapses. 01372_ U-05 Engineer lays Concrete. 01373_ Plasma Injector explodes. 01374_ The unstable cave ceiling collapses. 01374_ C-30 ARC bursts open, deploying its payload. 01374_ D-53 Grenadier unfolds itself. 01374_ U-05 Engineer lays Concrete. 01374_ Lgt. Treads destroyed. 01374_ Rocket Launcher destroyed. 01374_ Lgt. Treads destroyed. 01374_ U-05 Engineer destroyed. 01374_ R-06 Scavenger collects Terrain Scan Processor. 01375_ The unstable cave ceiling collapses. 01376_ Hvy. Assault Rifle destroyed. 01377_ The unstable cave ceiling collapses. 01377_ K-01 Serf collects debris. 01378_ Com. Wheel destroyed. Map ----- +----------------------------------------------------+ | | | | | | | | | | | | | | | | | | | | | ?????????????????????????????????????????????????? | | ?????????????????????????##??????????????????????? | | ?????????????????????#### #????##??####?????????? | | ????????????????????## ????? ## #????????? | | ???????????????????## ??????? ####????? | | ???????????????????#; #???????? ##???? | | ????????????????#### ##????????? #?### | | ????????????????? ???????????# ### | | ?????????????????? ???????##### ## # | | ???????????????????# dd ;????????# ## # | | ?????????????????### ;????????# ### # | | ?????????? ????## ###??##### ### ## ### | | ????????? ### ##?# #?##### # | | ????????? ### #?????# ##### | | ???????? ####????# #???? | | ???????? = @ #??????# ???? | | ???????? ######??????# ???? | | ???????? * #???????????## ???? | | ???????? # = ##????????????## ??? | | ?????????? #r #?????????????? ??? | | ?????????# # ##??????????????## ??? | | ??????????# #?#k ######????????????????? ??? | | ??????????# ???# ??????????????????????? #?? | | ??????????## ???? ??????????????????????? #?? | | ???????????# ????? ???????????????????????? #?? | | ??????????? ????? ???????????????????# ### | | ???????????????? ??????????????????? | | ???????????????? ????????????????????????? #### | | ??????????????? ??????????????????????????????? | | ???????????????? ??????????????????????????????? | | ?????????????????????????????????????????????????? | | ?????????????????????????????????????????????????? | | ?????????????????????????????????????????????????? | | ?????????????????????????????????????????#???????? | | ????????????????????????????????????????? ???????? | | ????????????????????????????????????????? ???###?? | | ?????????????# ????????????????????????? ??## ##? | | ?????????????# ##??????????????????????? ?## #? | | ?????????????? ##????????????????????# ## ## | | ??????????????? #???????????????????# # | +----------------------------------------------------+ Best States ------------- Heat Dissipation 25 Energy Generation 12 Energy Capacity 265 Matter Stores 300 Matter Capacity 300 Sight Range 16 Terrain Scan Range 16 Terrain Scan Density 10 ECM Strength 1 Evasion (%) 55 Recoil Reduction 2 Item Schematics ----------------- None Robot Schematics ------------------ None Fabricated ------------ Nothing Alien Tech Used ----------------- None Achievements -------------- None Challenges ------------ None Game ------ Seed ClaymoresEnergyCharge Manual? 0 Play Time 00:14:50 Cumulative 77.4 hours Start 2024.01.14 @ 13:22:41 End 2024.01.14 @ 13:35:31 Sessions 1 Manual Loads 0 Difficulty Rogue Special Mode None Game No. 89 Rogue 89 Adventurer 0 Explorer 0 Win Type - Total 0 Types 0/0/0/0/0/0/0/0/0 Lore% 34 Gallery% 43 Achievement% 36 Wizard Run 0 Options --------- ASCII 0 Keyboard 0 Movement Mouse Keybinds 0 Fullscreen 2 Font 24/Smallcaps Map View 76x50 Tactical HUD 1 Map Filters NONE Filters NONE Steam 1 RUN: d88b6c06-d7bb-45af-8c7a-850cf406a452